bitfinex-derivatives/quotes_SOLF0:USTF0_20250714
["timestamp","ask_amount","ask_price","bid_price","bid_amount"]
[1752503649256,11.13763513,166.09,165.94,11.13763513]
[1752503649461,11.13763513,166.09,165.88,718.5]
[1752503649662,6.0217,166.03,165.98,6.0232]
[1752503649869,11.13763513,166.09,165.95,11.13763513]
[1752503650073,6.0227,166.0,165.93,11.13763513]
[1752503650268,11.13763513,166.09,165.93,11.13763513]
[1752503650459,11.13763513,166.08,165.93,11.13763513]
[1752503651169,11.13763513,166.08,165.96,11.13763513]
[1752503651763,520.28,166.1,165.96,11.13763513]
[1752503651764,531.41763513,166.1,165.96,11.13763513]
[1752503651960,520.28,166.1,165.99,11.13763513]
[1752503652166,6.0193,166.09,166.05,6.0207]
[1752503652470,520.28,166.1,166.02,11.13763513]
[1752503653270,520.28,166.1,165.91,62.0]
[1752503653469,520.28,166.1,165.99,11.13763513]
[1752503653873,6.0205,166.06,166.01,6.0221]
[1752503654173,520.28,166.1,165.99,11.13763513]
[1752503654667,11.13763513,166.15,166.02,11.13763513]
[1752503654870,198.18,166.15,166.02,11.13763513]
[1752503655071,6.0196,166.09,166.04,6.0209]
[1752503655469,209.31763513,166.15,166.02,11.13763513]
[1752503655676,11.13763513,166.12,165.98,11.13763513]
[1752503656273,6.0213,166.04,165.99,6.0227]
[1752503656471,11.13763513,166.13,165.9,12.0518]
[1752503656772,11.13763513,166.12,165.9,12.0518]
[1752503656973,11.13763513,166.12,165.96,11.13763513]
[1752503657173,6.021,166.05,166.0,6.0225]
[1752503657371,11.13763513,166.12,166.0,6.0225]
[1752503657574,11.13763513,166.12,165.96,11.13763513]
[1752503657968,11.13763513,166.09,165.96,11.13763513]
[1752503658272,6.0226,166.0,165.96,17.16153513]
[1752503658470,11.13763513,166.06,165.95,1.24736]
[1752503659273,6.0235,165.98,165.95,1.24736]
[1752503659471,11.13763513,166.03,165.95,1.24736]
[1752503659665,11.13763513,166.06,165.95,1.24736]
[1752503659870,208.65763513,166.06,165.95,1.24736]
[1752503660678,197.52,166.06,165.95,1.24736]
[1752503661876,520.3,166.08,165.97,11.13763513]
[1752503662184,520.3,166.08,166.0,11.13763513]
[1752503662672,520.3,166.08,165.97,11.13763513]
[1752503663472,520.3,166.08,166.0,11.13763513]
[1752503664268,197.32,166.1,166.0,11.13763513]
[1752503664467,197.34,166.12,165.99,11.13763513]
[1752503664873,197.34,166.12,166.02,11.13763513]
[1752503666073,203.3585,166.12,166.04,11.13763513]
[1752503666280,197.34,166.12,166.04,11.13763513]
[1752503666478,6.0186,166.11,166.04,11.13763513]
[1752503666679,197.34,166.12,166.04,11.13763513]
[1752503667482,197.34,166.12,166.05,6.0206]
[1752503668073,197.34,166.12,166.01,11.13763513]
[1752503668583,6.019,166.1,166.05,6.0205]
[1752503668785,197.34,166.12,166.04,11.13763513]
[1752503669186,6.0186,166.11,166.06,6.0201]
[1752503669387,197.34,166.12,166.04,11.13763513]
[1752503669582,197.34,166.12,166.07,11.13763513]
[1752503669778,520.32,166.16,166.07,11.13763513]
[1752503670183,520.32,166.16,166.04,11.13763513]
[1752503671586,531.45763513,166.16,166.04,11.13763513]
[1752503671786,531.45763513,166.16,166.01,11.13763513]
[1752503672080,11.13763513,166.13,166.01,11.13763513]
[1752503672385,196.66,166.12,166.01,11.13763513]
[1752503672981,196.66,166.12,166.01,17.15973513]
[1752503673185,196.66,166.12,165.98,11.13763513]
[1752503673487,11.13763513,166.1,165.95,12.38499513]
[1752503674781,11.13763513,166.1,165.98,6.0231]
[1752503675075,11.13763513,166.1,165.95,12.38499513]
[1752503675280,196.26,166.1,165.98,11.13763513]
[1752503675678,11.13763513,166.09,165.95,12.38499513]
[1752503676183,11.13763513,166.14,165.98,11.13763513]
[1752503676378,11.13763513,166.14,166.05,6.0207]
[1752503676379,196.42,166.13,166.05,6.0207]
[1752503676576,196.42,166.13,166.01,11.13763513]
[1752503676782,6.0191,166.1,166.05,6.0204]
[1752503676982,6.0191,166.1,166.05,6.76729837]
[1752503677283,6.0196,166.09,166.05,6.76729837]
[1752503677580,6.76729837,166.09,165.98,6.76729837]
[1752503677782,6.0212,166.04,166.0,6.0225]
[1752503678087,6.76729837,166.11,166.0,6.76729837]
[1752503678281,196.4,166.1,166.0,6.76729837]
[1752503679080,196.4,166.1,166.03,6.0212]
[1752503679282,196.4,166.1,166.0,6.76729837]
[1752503679482,196.4,166.1,166.03,6.0212]
[1752503679483,6.0201,166.07,166.03,6.0212]
[1752503679681,196.4,166.1,166.01,6.76729837]
[1752503679881,196.4,166.1,165.98,4.95903354]
[1752503680080,6.0203,166.07,166.02,6.0216]
[1752503680280,196.4,166.1,166.02,6.0216]
[1752503680492,196.4,166.1,165.98,4.95903354]
[1752503680689,196.4,166.1,166.0,6.76729837]
[1752503680883,196.4,166.1,166.03,6.76729837]
[1752503681079,196.4,166.1,165.99,4.95903354]
[1752503681292,196.4,166.1,166.01,6.76729837]
[1752503681484,527.08729837,166.16,166.04,6.76729837]
[1752503681691,196.2,166.15,166.06,6.0204]
[1752503681990,196.2,166.15,166.04,6.76729837]
[1752503682186,196.2,166.15,166.05,6.0205]
[1752503682187,6.76729837,166.14,166.05,6.0205]
[1752503682384,6.76729837,166.14,166.04,6.76729837]
[1752503682891,520.32,166.16,166.06,6.76729837]
[1752503683588,527.08729837,166.16,166.06,6.76729837]
[1752503684291,527.08729837,166.16,166.07,6.0199]
[1752503684693,527.08729837,166.16,166.06,6.76729837]
[1752503684892,6.76729837,166.14,166.04,6.76729837]
[1752503685088,6.76729837,166.14,166.02,6.76729837]
[1752503685491,6.76729837,166.14,166.05,6.0205]
[1752503685893,6.76729837,166.12,166.02,6.76729837]
[1752503686089,6.76729837,166.1,165.98,4.95903354]
[1752503686388,195.8,166.09,165.98,6.76729837]
[1752503686591,195.8,166.09,166.02,6.0216]
[1752503686889,195.8,166.09,166.0,6.76729837]
[1752503687688,195.8,166.09,166.01,6.022]
[1752503687890,195.8,166.09,166.0,6.76729837]
[1752503688195,195.8,166.09,166.02,6.0216]
[1752503688993,195.8,166.09,166.0,6.76729837]
[1752503689194,195.8,166.09,166.02,6.76729837]
[1752503689395,195.8,166.09,166.06,6.0202]
[1752503689597,11.63776851,166.15,166.04,6.76729837]
[1752503689893,195.48,166.14,165.99,4.95903354]
[1752503690099,195.48,166.14,166.06,6.76729837]
[1752503690497,195.48,166.14,166.08,6.76729837]
[1752503690802,525.19047014,166.16,166.08,6.76729837]
[1752503690996,4.87047014,166.16,166.08,6.76729837]
[1752503691500,4.87047014,166.16,166.1,6.76729837]
[1752503691690,6.85608051,166.17,166.1,6.76729837]
[1752503691893,6.85608051,166.17,166.12,6.76729837]
[1752503692087,4.87047014,166.18,166.14,6.76729837]
[1752503692297,4.87047014,166.19,166.14,6.76729837]
[1752503692495,4.87047014,166.19,166.05,520.22]
[1752503692701,11.63776851,166.19,166.05,520.22]
[1752503692895,4.87047014,166.18,166.07,6.76729837]
[1752503693090,6.76729837,166.17,166.05,526.98729837]
[1752503693292,6.85610396,166.17,166.03,6.76729837]
[1752503693491,6.76729837,166.14,166.04,6.021]
[1752503693696,6.76729837,166.14,166.03,6.76729837]
[1752503695403,6.76729837,166.12,166.0,5.05327071]
[1752503695603,194.8,166.11,165.99,17.84346908]
[1752503695795,201.56729837,166.11,165.99,6.76729837]
[1752503696904,201.56729837,166.11,166.01,6.022]
[1752503697605,201.56729837,166.11,166.0,6.0225]
[1752503697810,201.56729837,166.11,165.99,11.82056908]
[1752503698101,201.56729837,166.11,166.01,6.76729837]
[1752503698300,6.76729837,166.14,166.03,6.76729837]
[1752503698496,194.52,166.15,166.05,6.76729837]
[1752503699006,4.92789599,166.19,166.08,6.76729837]
[1752503699200,4.92789599,166.2,166.11,6.76729837]
[1752503699500,1.98730327,166.2,166.11,6.76729837]
[1752503700001,4.92789599,166.22,166.13,6.76729837]
[1752503700401,6.76729837,166.19,166.09,6.76729837]
[1752503700603,6.76729837,166.16,166.05,5.05327071]
[1752503700902,6.76729837,166.16,166.04,5.05327071]
[1752503701102,11.14072195,166.19,166.05,11.14072195]
[1752503701303,194.5,166.17,166.05,16.19399266]
[1752503701505,4.92789599,166.22,166.08,11.14072195]
[1752503701715,194.36,166.22,166.08,11.14072195]
[1752503701906,1.98705305,166.21,166.11,11.14072195]
[1752503702107,730.60861794,166.24,166.11,11.14072195]
[1752503702303,714.54,166.24,166.11,11.14072195]
[1752503702509,1.98665058,166.23,166.1,11.14072195]
[1752503702708,714.54,166.24,166.11,11.12869722]
[1752503703014,520.22,166.24,166.14,11.12869722]
[1752503703205,4.92789599,166.26,166.14,11.12869722]
[1752503703405,4.92789599,166.26,166.08,5.05327071]
[1752503703703,4.92789599,166.26,166.13,11.12869722]
[1752503703909,4.92789599,166.26,166.2,6.0151]
[1752503704117,4.92789599,166.27,166.19,11.12869722]
[1752503704416,4.92789599,166.26,166.19,11.12869722]
[1752503704614,4.92789599,166.26,166.2,11.11650384]
[1752503704915,4.92789599,166.26,166.21,6.0147]
[1752503705106,4.92789599,166.26,166.2,11.11650384]
[1752503705107,4.92789599,166.27,166.2,11.11650384]
[1752503705311,4.92789599,166.28,166.26,11.11650384]
[1752503705508,4.92789599,166.29,166.26,11.11650384]
[1752503705717,4.92789599,166.29,166.26,11.10883311]
[1752503705919,4.92789599,166.29,166.26,6.0131]
[1752503706220,4.92789599,166.29,166.28,11.11062606]
[1752503706420,4.92789599,166.3,166.28,11.11062606]
[1752503706714,4.92789599,166.3,166.29,6.0121]
[1752503706924,6.49896044,166.33,166.28,11.11062606]
[1752503707108,9.91334381,166.33,166.32,6.011]
[1752503707308,9.91334381,166.34,166.31,11.11062606]
[1752503707522,6.56160147,166.32,166.31,6.0113]
[1752503707724,9.91334381,166.37,166.31,11.11062606]
[1752503708019,9.91334381,166.37,166.28,519.84]
[1752503708020,9.91334381,166.37,166.36,11.11062606]
[1752503708220,9.91334381,166.38,166.36,6.0095]
[1752503708418,9.91334381,166.38,166.28,519.84]
[1752503708610,9.91334381,166.37,166.33,11.11062606]
[1752503708817,9.91334381,166.37,166.34,6.01]
[1752503709014,9.91334381,166.38,166.34,6.01]
[1752503709220,9.91334381,166.37,166.33,11.11062606]
[1752503709420,9.91334381,166.38,166.33,11.11062606]
[1752503709715,9.91334381,166.38,166.35,6.0096]
[1752503710116,9.91334381,166.38,166.36,11.11062606]
[1752503710315,9.91334381,166.41,166.32,11.11062606]
[1752503710518,9.91334381,166.4,166.32,11.11062606]
[1752503710718,9.91334381,166.4,166.35,6.0099]
[1752503710919,9.91334381,166.42,166.32,11.11062606]
[1752503711118,9.91334381,166.43,166.32,11.11062606]
[1752503711318,9.91334381,166.44,166.32,11.11062606]
[1752503711818,9.91334381,166.45,166.32,11.11062606]
[1752503712020,9.91334381,166.46,166.35,11.11062606]
[1752503712227,194.7,166.47,166.35,11.11062606]
[1752503712927,194.7,166.47,166.38,11.11062606]
[1752503713421,194.7,166.47,166.35,11.11062606]
[1752503713627,205.81062606,166.47,166.35,11.11062606]
[1752503713923,194.7,166.47,166.35,11.11062606]
[1752503714317,11.11062606,166.52,166.39,11.11062606]
[1752503715029,11.11062606,166.52,166.41,6.0077]
[1752503715323,530.95062606,166.53,166.39,11.11062606]
[1752503715522,530.95062606,166.53,166.42,11.11062606]
[1752503715718,530.95062606,166.53,166.3,5.05327071]
[1752503715924,530.95062606,166.53,166.39,11.11062606]
[1752503716219,11.11062606,166.5,166.29,5.05327071]
[1752503716424,11.11062606,166.5,166.35,11.11062606]
[1752503717219,11.11062606,166.49,166.3,193.54]
[1752503717423,11.11062606,166.49,166.33,11.11062606]
[1752503717619,11.11062606,166.49,166.37,6.0089]
[1752503718026,11.11062606,166.49,166.33,11.11062606]
[1752503718027,531.99648769,166.53,166.33,11.11062606]
[1752503718324,11.11062606,166.44,166.3,11.11062606]
[1752503718722,11.11062606,166.41,166.31,6.0111]
[1752503718921,11.11062606,166.41,166.3,11.11062606]
[1752503719123,11.11062606,166.41,166.29,6.0118]
[1752503719425,11.11062606,166.41,166.28,519.84]
[1752503719626,11.11062606,166.41,166.29,6.0119]
[1752503719824,11.11062606,166.41,166.28,519.84]
[1752503720023,11.11062606,166.41,166.26,11.11062606]
[1752503720828,11.11062606,166.41,166.31,6.0113]
[1752503721221,11.11062606,166.41,166.27,11.11062606]
[1752503721426,11.11062606,166.38,166.25,193.14]
[1752503721722,11.11062606,166.41,166.31,6.0111]
[1752503722021,11.11062606,166.41,166.27,11.11062606]
[1752503722416,519.3,166.43,166.27,11.11062606]
[1752503722417,193.08,166.42,166.27,11.11062606]
[1752503722616,193.08,166.42,166.3,11.11062606]
[1752503723421,193.08,166.42,166.25,193.14]
[1752503723422,11.11062606,166.4,166.29,6.012]
[1752503723627,11.11062606,166.4,166.25,11.11062606]
[1752503723930,11.11062606,166.37,166.25,11.11062606]
[1752503724122,11.11062606,166.37,166.22,11.11062606]
[1752503725224,193.08,166.42,166.21,192.96]
[1752503725225,11.11062606,166.34,166.21,192.96]
[1752503725428,204.05062606,166.34,166.21,192.96]
[1752503725623,11.11062606,166.31,166.21,6.0148]
[1752503725829,11.11062606,166.31,166.2,11.11062606]
[1752503726022,11.11062606,166.32,166.24,6.0136]
[1752503726220,204.05062606,166.34,166.2,11.11062606]
[1752503726627,204.05062606,166.34,166.13,204.8953]
[1752503726830,11.11062606,166.34,166.13,204.8953]
[1752503727129,11.11062606,166.31,166.21,6.0149]
[1752503727722,11.11062606,166.31,166.2,6.0152]
[1752503728128,11.11062606,166.34,166.2,11.11062606]
[1752503728323,537.34,166.43,166.23,11.11062606]
[1752503728324,11.11062606,166.37,166.23,11.11062606]
[1752503729328,11.11062606,166.37,166.28,6.0122]
[1752503729523,193.4,166.4,166.26,11.11062606]
[1752503729729,519.3,166.43,166.29,11.11062606]
[1752503729929,519.3,166.43,166.32,11.11062606]
[1752503730329,519.3,166.43,166.32,17.12132606]
[1752503730529,519.3,166.43,166.32,11.11062606]
[1752503730725,519.3,166.43,166.33,6.0105]
[1752503730926,519.3,166.43,166.32,11.11062606]
[1752503731336,193.44,166.47,166.35,11.11062606]
[1752503731736,193.44,166.47,166.38,11.11062606]
[1752503731937,519.42,166.51,166.38,11.11062606]
[1752503732237,519.42,166.51,166.41,11.11062606]
[1752503733136,530.53062606,166.51,166.35,11.11062606]
[1752503733339,11.11062606,166.48,166.35,11.11062606]
[1752503733530,11.11062606,166.48,166.39,6.0084]
[1752503733832,11.11062606,166.48,166.35,11.11062606]
[1752503734840,11.11062606,166.48,166.38,6.0086]
[1752503735039,11.11062606,166.48,166.34,530.53062606]
[1752503735236,11.11062606,166.48,166.37,11.11062606]
[1752503735537,723.51062606,166.51,166.37,11.11062606]
[1752503735739,712.4,166.51,166.4,11.11062606]
[1752503736639,712.4,166.51,166.43,11.11062606]
[1752503737134,192.98,166.51,166.35,12.0198]
[1752503737438,11.11062606,166.57,166.47,6.0055]
[1752503737439,192.72,166.56,166.47,6.0055]
[1752503737835,192.72,166.56,166.42,11.11062606]
[1752503738337,203.83062606,166.56,166.42,11.11062606]
[1752503738537,203.83062606,166.56,166.43,6.0069]
[1752503738741,203.83062606,166.56,166.4,11.11062606]
[1752503739136,11.11062606,166.53,166.4,11.11062606]
[1752503739632,11.11062606,166.53,166.43,6.0069]
[1752503739840,11.11062606,166.53,166.4,11.11062606]
[1752503740333,192.72,166.56,166.34,712.06]
[1752503740334,11.11062606,166.5,166.34,712.06]
[1752503740528,11.11062606,166.5,166.34,723.17062606]
[1752503740529,192.64,166.49,166.34,723.17062606]
[1752503740937,11.11062606,166.47,166.34,723.17062606]
[1752503741431,192.64,166.49,166.25,7.88664877]
[1752503741432,11.11062606,166.42,166.3,11.11062606]
[1752503741637,11.11062606,166.42,166.27,11.11062606]
[1752503741841,11.10803374,166.4,166.26,11.10803374]
[1752503742530,203.48803374,166.42,166.26,11.10803374]
[1752503742732,11.10803374,166.39,166.26,11.10803374]
[1752503742933,11.10803374,166.39,166.25,520.40966]
[1752503743339,11.10803374,166.36,166.25,1.26966]
[1752503744235,192.44,166.41,166.28,11.10803374]
[1752503744434,11.10803374,166.42,166.28,11.10803374]
[1752503745041,192.42,166.43,166.31,11.10803374]
[1752503745344,11.10803374,166.45,166.31,11.10803374]
[1752503745533,530.24803374,166.48,166.34,11.10803374]
[1752503745930,530.24803374,166.48,166.38,6.0087]
[1752503746130,530.24803374,166.48,166.34,11.10803374]
[1752503746637,519.14,166.48,166.37,11.10803374]
[1752503746938,192.26,166.5,166.28,4.95158447]
[1752503747136,192.26,166.5,166.37,11.10803374]
[1752503747435,11.10803374,166.48,166.29,4.95158447]
[1752503747642,11.10803374,166.48,166.37,6.0091]
[1752503747840,11.10803374,166.48,166.34,11.10803374]
[1752503748343,11.10803374,166.45,166.31,11.10803374]
[1752503748541,11.10803374,166.45,166.34,6.0099]
[1752503749041,11.10803374,166.45,166.35,6.0096]
[1752503749336,11.10803374,166.45,166.31,11.10803374]
[1752503749537,11.10803374,166.42,166.28,11.10803374]
[1752503749736,203.22803374,166.42,166.28,11.10803374]
[1752503750141,192.12,166.42,166.26,11.10803374]
[1752503750336,11.10803374,166.4,166.26,11.10803374]
[1752503750842,11.10803374,166.37,166.25,193.52966]
[1752503751035,11.10803374,166.37,166.25,1.26966]
[1752503751241,11.10803374,166.37,166.28,6.0122]
[1752503752135,11.10803374,166.37,166.25,1.26966]
[1752503752338,11.10803374,166.34,166.25,1.26966]
[1752503752742,202.92803374,166.34,166.25,1.26966]
[1752503753130,519.22,166.43,166.25,1.26966]
[1752503753131,11.10803374,166.38,166.25,1.26966]
[1752503753541,202.90803374,166.38,166.25,1.26966]
[1752503754037,11.11477041,166.35,166.25,1.26966]
[1752503754242,11.11477041,166.35,166.26,6.013]
[1752503754440,11.11477041,166.35,166.25,1.26966]
[1752503754837,11.11477041,166.35,166.26,6.0129]
[1752503755032,11.11477041,166.35,166.25,1.26966]
[1752503755539,202.73477041,166.36,166.25,1.26966]
[1752503755841,11.11477041,166.32,166.25,1.26966]
[1752503757447,11.11477041,166.29,166.25,1.26966]
[1752503757643,11.11477041,166.29,166.14,11.11477041]
[1752503757843,11.11477041,166.26,166.14,11.11477041]
[1752503758043,11.11477041,166.26,166.19,6.0154]
[1752503758445,11.11477041,166.26,166.14,11.11477041]
[1752503758743,11.12346504,166.29,166.15,11.12346504]
[1752503759844,191.48,166.3,166.15,11.12346504]
[1752503760045,191.48,166.3,166.11,524.31158447]
[1752503760046,191.32,166.32,166.18,11.12346504]
[1752503760446,530.48346504,166.33,166.21,11.12346504]
[1752503760643,519.36,166.33,166.21,11.12346504]
[1752503761049,530.48346504,166.33,166.18,11.12346504]
[1752503761445,11.12346504,166.3,166.15,11.12346504]
[1752503762048,11.12346504,166.27,166.1,4.95158447]
[1752503762249,11.12346504,166.24,166.11,11.12346504]
[1752503762449,11.12346504,166.24,166.16,6.0165]
[1752503762855,191.42,166.26,166.11,11.12346504]
[1752503763054,191.42,166.26,166.17,6.0162]
[1752503763251,191.42,166.26,166.11,11.12346504]
[1752503763653,11.12346504,166.21,166.08,11.12346504]
[1752503764450,530.72346504,166.23,166.08,11.12346504]
[1752503764855,721.88346504,166.23,166.08,11.12346504]
[1752503765056,530.72346504,166.23,166.08,11.12346504]
[1752503765257,519.6,166.23,166.11,11.12346504]
[1752503765657,519.6,166.23,166.06,536.49238447]
[1752503765658,530.72346504,166.23,166.08,11.12346504]
[1752503765953,11.12346504,166.2,166.08,11.12346504]
[1752503766156,11.12346504,166.2,166.06,519.5]
[1752503766556,11.12346504,166.2,166.13,6.0175]
[1752503766753,11.12346504,166.2,166.08,11.12346504]
[1752503766958,519.6,166.23,166.11,11.12346504]
[1752503767155,519.6,166.23,166.16,6.0166]
[1752503767359,519.6,166.23,166.11,11.12346504]
[1752503767557,530.72346504,166.23,166.11,11.12346504]
[1752503768656,11.12346504,166.2,166.06,519.5]
[1752503769057,191.06,166.19,166.06,519.5]
[1752503769959,191.06,166.19,166.1,6.0187]
[1752503770163,191.06,166.19,166.06,519.5]
[1752503770364,191.06,166.19,166.1,6.0188]
[1752503770559,11.12346504,166.17,166.05,11.12346504]
[1752503770855,11.12346504,166.17,166.11,6.0186]
[1752503771061,11.12346504,166.17,166.05,11.12346504]
[1752503771460,190.82,166.18,166.05,11.12346504]
[1752503772053,201.94346504,166.18,166.05,11.12346504]
[1752503772464,201.94346504,166.18,166.08,6.0195]
[1752503772856,190.5,166.18,166.01,202.9244]
[1752503773065,190.5,166.18,166.09,6.019]
[1752503773259,11.14019617,166.16,166.09,6.019]
[1752503773458,11.14019617,166.16,166.05,11.14019617]
[1752503773758,201.96019617,166.16,166.05,11.14019617]
[1752503774160,201.96019617,166.16,166.1,6.0189]
[1752503774360,11.14019617,166.15,166.01,201.92019617]
[1752503774568,11.14019617,166.15,166.01,190.78]
[1752503775066,519.88,166.2,166.11,6.0184]
[1752503775263,519.88,166.2,166.06,11.14019617]
[1752503775264,191.14,166.19,166.06,11.14019617]
[1752503775565,202.28019617,166.19,166.06,11.14019617]
[1752503775968,11.14019617,166.16,166.05,11.14019617]
[1752503776160,11.14019617,166.16,166.05,6.0207]
[1752503776364,11.14019617,166.13,166.01,11.14019617]
[1752503776556,11.14667215,166.11,165.95,23.19517215]
[1752503776962,11.14667215,166.11,165.95,11.14667215]
[1752503777463,11.14667215,166.11,165.91,4.97989227]
[1752503777664,11.15003612,166.1,165.95,11.15003612]
[1752503777970,6.021,166.05,166.01,6.0219]
[1752503778363,6.021,166.05,166.01,6.0221]
[1752503778558,11.15003612,166.1,166.01,6.0221]
[1752503778764,11.15003612,166.1,165.95,11.15003612]
[1752503779675,6.0195,166.09,165.98,11.15003612]
[1752503779868,191.24,166.11,165.98,11.15003612]
[1752503780069,191.24,166.11,166.0,11.15003612]
[1752503780270,191.24,166.11,165.97,11.15003612]
[1752503780468,11.15003612,166.1,165.97,11.15003612]
[1752503780771,6.021,166.05,165.95,11.15003612]
[1752503781275,11.15003612,166.11,165.98,11.15003612]
[1752503781473,30.0741,166.16,165.9,711.62]
[1752503781474,11.15003612,166.13,166.01,11.15003612]
[1752503781662,11.15003612,166.16,166.01,11.15003612]
[1752503782269,11.15003612,166.16,166.06,6.0201]
[1752503782469,11.15003612,166.16,166.01,11.15003612]
[1752503782683,11.15003612,166.16,166.06,6.0202]
[1752503782880,11.15003612,166.13,166.01,11.15003612]
[1752503783484,520.16,166.15,166.01,11.15003612]
[1752503783780,520.16,166.15,166.04,11.15003612]
[1752503783984,531.31003612,166.15,165.99,12.0455]
[1752503784179,11.15003612,166.11,165.94,12.0491]
[1752503784377,11.15003612,166.11,165.9,711.62]
[1752503784580,11.15003612,166.08,165.96,11.15003612]
[1752503784783,11.15564459,166.05,165.9,722.77564459]
[1752503785485,11.15564459,166.02,165.9,711.62]
[1752503786180,211.2,166.1,165.9,711.62]
[1752503786181,193.16,166.1,165.9,711.62]
[1752503786380,11.15564459,166.04,165.99,6.0229]
[1752503786584,520.16,166.15,165.96,11.15564459]
[1752503786883,204.51564459,166.1,166.0,6.0225]
[1752503787079,204.51564459,166.1,165.96,11.15564459]
[1752503787282,11.15564459,166.07,165.9,711.62]
[1752503787484,11.15564459,166.07,165.98,6.023]
[1752503787690,193.36,166.1,165.98,6.023]
[1752503787988,11.15564459,166.06,165.98,6.023]
[1752503788278,11.15564459,166.06,165.92,11.15564459]
[1752503788279,6.0217,166.03,165.99,6.0228]
[1752503788687,11.15564459,166.03,165.9,722.77564459]
[1752503789288,6.023,165.99,165.95,6.0241]
[1752503789583,11.15564459,166.03,165.95,6.0241]
[1752503789783,193.36,166.1,165.92,11.15564459]
[1752503790083,11.15564459,166.06,165.92,11.15564459]
[1752503790283,6.0219,166.02,165.92,11.15564459]
[1752503790482,12.0367,166.12,165.92,11.15564459]
[1752503790680,11.15564459,166.09,165.95,11.15564459]
[1752503790882,11.14692564,166.12,165.98,11.14692564]
[1752503791083,204.86692564,166.13,165.98,11.14692564]
[1752503791281,6.0194,166.09,166.04,6.0209]
[1752503791475,11.14692564,166.13,165.98,11.14692564]
[1752503791674,33.21728342,166.18,166.01,11.14692564]
[1752503791675,11.14692564,166.16,166.01,11.14692564]
[1752503791880,193.7,166.17,166.04,11.14692564]
[1752503792080,193.7,166.17,166.05,11.14692564]
[1752503792280,11.14692564,166.16,166.02,11.14692564]
[1752503792477,11.14692564,166.16,165.99,193.76]
[1752503792790,11.14692564,166.16,166.06,6.0201]
[1752503792981,11.14692564,166.16,166.02,11.14692564]
[1752503793385,11.14692564,166.16,166.05,6.0206]
[1752503793685,11.14692564,166.16,166.0,11.14692564]
[1752503793988,11.14692564,166.16,166.05,6.0204]
[1752503794384,11.14692564,166.16,166.04,6.0209]
[1752503794586,11.14692564,166.16,166.0,11.14692564]
[1752503794782,11.14692564,166.13,165.98,11.14692564]
[1752503794985,11.14692564,166.17,166.01,11.14692564]
[1752503795187,194.14,166.14,166.01,11.14692564]
[1752503795488,194.14,166.14,166.06,6.0201]
[1752503795887,194.14,166.14,166.04,11.14692564]
[1752503796090,194.06,166.16,166.04,11.14692564]
[1752503796286,11.14692564,166.14,165.96,12.048]
[1752503796494,11.14692564,166.14,166.01,6.022]
[1752503796688,11.14692564,166.11,165.97,11.14692564]
[1752503796887,11.14692564,166.13,165.97,11.14692564]
[1752503797086,11.14692564,166.13,166.02,6.0216]
[1752503797485,11.14692564,166.13,166.03,6.0214]
[1752503797791,193.92,166.12,166.0,11.14692564]
[1752503798088,11.14625236,166.01,165.87,6.61698877]
[1752503798284,11.14625236,166.01,165.75,23.12340421]
[1752503798285,193.86,166.0,165.86,11.14625236]
[1752503798484,193.86,166.0,165.89,11.14625236]
[1752503798879,193.86,166.0,165.92,11.14625236]
[1752503799084,193.86,166.0,165.93,6.77607327]
[1752503799386,6.77607327,166.09,165.96,6.77607327]
[1752503799588,6.0215,166.03,165.97,6.0234]
[1752503799788,6.77607327,166.09,165.97,6.0234]
[1752503800090,6.77607327,166.09,165.96,6.77607327]
[1752503800287,6.0216,166.03,165.94,6.77607327]
[1752503800484,6.77607327,166.06,165.94,6.77607327]
[1752503800683,193.84,166.1,165.85,532.3159]
[1752503800684,6.77607327,166.03,165.92,6.77607327]
[1752503800885,6.0223,166.01,165.92,6.77607327]
[1752503801090,11.1564073,166.04,165.89,11.1564073]
[1752503801292,6.0223,166.01,165.95,6.0243]
[1752503801592,11.1564073,166.06,165.92,11.1564073]
[1752503801791,204.9964073,166.1,165.95,11.1564073]
[1752503802093,520.26,166.12,165.98,11.1564073]
[1752503802888,520.26,166.12,166.04,6.021]
[1752503803193,520.26,166.12,165.98,11.1564073]
[1752503803390,6.0187,166.11,165.98,11.1564073]
[1752503803584,193.64,166.13,166.01,11.1564073]